[Event "Dutch Open 2022"]
[Site "Dieren"]
[Date "2022.07.30"]
[Round "5.8"]
[White "Baselmans, Sam"]
[Black "Labruyere, Roger"]
[Result "1/2-1/2"]
[ECO "B11"]
[WhiteElo "2182"]
[BlackElo "2070"]
[Annotator "TA"]
[PlyCount "48"]
[EventDate "2022.07.14"]
[EventType "swiss"]
[EventCountry "NED"]
[SourceTitle "playchess.com"]
[Source "ChessBase"]
[SourceQuality "1"]
[TimeControl "40/5400+30:1800+30"]

{[%evp 9,48,7,1,0,16,22,33,34,31,22,33,31,47,36,41,12,44,33,33,35,47,55,100,43,64,59,92,16,29,38,29,35,30,37,55,28,28,27,33,34,45]} 1. e4 {[%emt 0:00:03]} c6 {[%emt 0:00:03]} 2. Nf3 {[%emt 0:00:06]} d5 {[%emt 0:00:03]} 3. Nc3 {[%emt 0:00:05]} Bg4 {[%emt 0:00:03]} 4. Be2 {[%emt 0:00:09]} e6 {[%emt 0:00:19]} 5. O-O {[%emt 0:00:09]} Nf6 {[%emt 0:00:26]} 6. h3 {[%emt 0:00:16] B11: Caro-Kann: Two Knights Variation.} Bxf3 {[%emt 0:00:13]} 7. Bxf3 {[%emt 0:00:09]} dxe4 {[%emt 0:00:55]} 8. Nxe4 {[%emt 0:01:40]} Nbd7 {[%emt 0:00:25]} 9. Nxf6+ {[%emt 0:01:34]} Qxf6 {[%emt 0:00:59]} 10. d4 {[%emt 0:00:21] [#]} Be7 $146 {[%emt 0:00:14]} ({Predecessor:} 10... Bd6 11. Re1 O-O 12. Be3 Rfd8 13. Qd2 h6 14. c4 Bc7 15. Rad1 a5 16. Be4 Ne5 17. dxe5 Qxe5 {1-0 (24) Chojnowski,M (2099)-Kulpinski,P (1859) Wagrowiec 2017}) 11. c4 {[%emt 0:02:01]} O-O {[%emt 0:02:08]} 12. b3 {[%emt 0:10:48]} Rfd8 {[%emt 0:01:45]} 13. Bb2 {[%emt 0:03:53]} a5 {[%emt 0:00:57]} 14. Qe2 {[%emt 0:01:54]} Qg5 {[%emt 0:11:13] Prevents d5.} 15. Rad1 {[%emt 0:07:53]} Nf6 {[%emt 0:15:32] [#] Against d5} 16. g3 {[%emt 0:13:41]} (16. Bc1 $1 $16 {[%cal Rc1g5]} Qh4 17. Kh2 Bd6+ 18. g3) 16... a4 {[%emt 0:01:48]} 17. d5 {[%emt 0:06:37]} Bc5 {[%emt 0:07:01]} ({Less strong is} 17... cxd5 18. cxd5 Ra6 19. bxa4 $16) 18. Kg2 {[%emt 0:06:16]} ({White should play} 18. b4 $16 Bxb4 19. dxc6 (19. dxe6 Re8 $14) 19... bxc6 20. Bxc6) 18... exd5 {[%emt 0:01:40]} 19. h4 {[%emt 0:02:23]} (19. Bxf6 {is interesting.} Qxf6 20. cxd5 axb3 21. axb3 Bd4 22. dxc6 bxc6 23. Rc1) 19... Qf5 {[%emt 0:00:11]} 20. Bxf6 {[%emt 0:00:15]} Qxf6 {[%emt 0:03:45]} ({Don't play} 20... gxf6 21. cxd5 axb3 22. dxc6 bxc6 23. axb3 $16) 21. cxd5 {[%emt 0:00:11]} cxd5 {[%emt 0:02:02]} 22. Rxd5 {[%emt 0:02:57]} Rxd5 {[%emt 0:01:08]} 23. Bxd5 {[%emt 0:00:04]} axb3 {[%emt 0:00:46]} 24. axb3 {[%emt 0:00:13]} Rb8 {[%emt 0:00:44] Weighted Error Value: White=0.16 (very precise) /Black=0.14 (very precise)} 1/2-1/2

[Event "Dutch Open 2022"]
[Site "Dieren"]
[Date "2022.07.30"]
[Round "5.9"]
[White "Pijkeren, Jan"]
[Black "Maatman, Nick"]
[Result "0-1"]
[ECO "A20"]
[WhiteElo "2196"]
[BlackElo "2368"]
[Annotator "TA"]
[PlyCount "60"]
[EventDate "2022.07.14"]
[EventType "swiss"]
[EventCountry "NED"]
[SourceTitle "playchess.com"]
[Source "ChessBase"]
[SourceQuality "1"]
[TimeControl "40/5400+30:1800+30"]

{[%evp 9,60,-2,16,16,11,0,0,0,3,15,0,-24,-22,-18,-27,-27,-26,-22,-22,-23,0,-11,0,0,0,0,0,0,0,0,14,0,0,-50,-7,-70,-69,-86,-100,-88,-76,-165,-178,-168,-179,-751,-742,-721,-714,-1803,-1469,-2776,-2478]} 1. c4 {[%emt 0:00:04]} e5 {[%emt 0:00:04]} 2. g3 {[%emt 0:00:19]} c6 {[%emt 0:00:07]} 3. d4 {[%emt 0:01:19]} e4 {[%emt 0:00:02]} 4. Bg2 {[%emt 0:02:35]} d5 {[%emt 0:00:19]} 5. Nc3 {[%emt 0:01:22]} Nf6 {[%emt 0:00:19]} 6. Bg5 {[%emt 0:00:19] A20: English Opening: 1...e5.} Nbd7 {[%emt 0:00:18]} 7. cxd5 {[%emt 0:04:15]} cxd5 {[%emt 0:00:02]} 8. Qb3 {[%emt 0:07:22] The position is equal.} Bd6 {[%emt 0:01:03]} 9. Nh3 {[%emt 0:01:11]} h6 {[%emt 0:00:08]} 10. Nb5 {[%emt 0:07:18]} Bb8 {[%emt 0:11:43]} 11. Bf4 {[%emt 0:01:13]} Bxf4 {[%emt 0:24:02]} 12. Nxf4 {[%emt 0:00:17] [#] Threatens to win with Qa3.} Qa5+ {[%emt 0:00:04]} 13. Nc3 {[%emt 0:09:37][%cal Rf4d5]} Nb6 {[%emt 0:00:52] [#]} 14. h4 $146 {[%emt 0:03:24]} ({Predecessor:} 14. e3 Bd7 15. O-O O-O 16. Rfe1 Rfc8 17. Rac1 g5 18. Nfe2 Nc4 19. Nxe4 dxe4 {0-1 (19) Maack,K (2082)-Gunnarsson,J (2445) Reykjavik 2019}) 14... Bd7 {[%emt 0:04:46]} 15. e3 {[%emt 0:02:40]} Rc8 {[%emt 0:04:25]} 16. Bf1 {[%emt 0:05:30]} g6 {[%emt 0:02:28]} 17. Be2 {[%emt 0:01:27]} Kf8 {[%emt 0:03:03][%cal Be8f8,Bf8g7,Bg7h8][%mdl 32]} 18. Kf1 {[%emt 0:00:13]} Kg7 {[%emt 0:00:26]} 19. Kg2 {[%emt 0:04:54]} g5 {[%emt 0:05:05]} 20. Nh3 {[%emt 0:01:11]} gxh4 {[%emt 0:02:23]} 21. gxh4 {[%emt 0:00:13]} (21. a4 $11) 21... Rhg8 {[%emt 0:00:23]} (21... Nc4 $5 {[%cal Rh8g8]} 22. Nf4 Nxb2 23. Qxb2 (23. Ncxd5 Nxd5 24. Qxd5 Qxd5 $11) 23... Rxc3 $11) 22. Rag1 {[%emt 0:03:34]} (22. Rhg1 $11) 22... Kh8+ $15 {[%emt 0:01:13]} 23. Kf1 {[%emt 0:00:56]} Rxg1+ {[%emt 0:01:07]} 24. Kxg1 {[%emt 0:00:42]} Nc4 {[%emt 0:08:44] [#] White must now prevent ...Rg8+.} 25. Bxc4 {[%emt 0:11:29]} (25. Qxb7 $17 Nxb2 26. Qxb2 Qxc3 27. Qxc3 Rxc3 28. Nf4) 25... dxc4 {[%emt 0:00:15]} 26. Qxb7 {[%emt 0:00:21]} Rg8+ {[%emt 0:02:50]} 27. Kf1 $2 {[%emt 0:00:18]} (27. Ng5 Qf5 28. Ne2) 27... Bxh3+ $19 {[%emt 0:00:16] Black is clearly winning.} 28. Rxh3 {[%emt 0:30:27]} Qf5 {[%emt 0:00:04]} 29. Rh1 {[%emt 0:14:45]} Qf3 {[%emt 0:03:31] ( -> ...Ng4)} 30. Rg1 {[%emt 0:01:36]} Qh3+ {[%emt 0:00:10] Weighted Error Value: White=0.78/Black=0.03 (flawless)} 0-1

[Event "Dutch Open 2022"]
[Site "Dieren"]
[Date "2022.07.30"]
[Round "5.10"]
[White "Bus, Tom"]
[Black "Binnendijk, Ferdinand"]
[Result "1-0"]
[ECO "A37"]
[WhiteElo "2102"]
[BlackElo "2147"]
[Annotator "TA"]
[PlyCount "81"]
[EventDate "2022.07.14"]
[EventType "swiss"]
[EventCountry "NED"]
[SourceTitle "playchess.com"]
[Source "ChessBase"]
[SourceQuality "1"]
[TimeControl "40/5400+30:1800+30"]

{[%evp 21,81,0,0,-16,0,2,5,8,14,0,0,0,17,3,7,13,7,3,148,145,148,139,149,143,124,74,114,106,118,99,104,64,82,116,409,417,384,391,635,243,257,264,257,253,268,268,225,145,565,527,702,690,1217,1151,794,593,4134,612,6095,478,29985,29986]} 1. Nf3 {[%emt 0:00:04]} c5 {[%emt 0:00:05]} 2. g3 {[%emt 0:00:36]} Nc6 {[%emt 0:00:07]} 3. Bg2 {[%emt 0:00:59]} g6 {[%emt 0:01:01]} 4. O-O {[%emt 0:00:19]} Bg7 {[%emt 0:00:04]} 5. c4 {[%emt 0:00:39]} e6 {[%emt 0:01:36]} 6. Nc3 {[%emt 0:02:24][%cal Bb1c3,Bc3b5,Bb5d4][%mdl 32]} Nge7 {[%emt 0:00:50][%cal Bg8e7,Be7d5,Bd5b4][%mdl 32]} 7. d4 {[%emt 0:03:26]} cxd4 {[%emt 0:02:59]} 8. Nb5 {[%emt 0:00:22]} O-O {[%emt 0:04:17]} 9. Nfxd4 {[%emt 0:03:09]} Nxd4 {[%emt 0:01:47]} 10. Nxd4 {[%emt 0:00:09]} d5 {[%emt 0:01:57]} 11. cxd5 {[%emt 0:03:13]} Nxd5 {[%emt 0:00:13]} 12. e4 {[%emt 0:04:16] A37: Symmetrical English vs ...g6: 4 Bg2 Bg7 5 Nf3.} Nb4 {[%emt 0:11:24]} 13. Be3 {[%emt 0:09:09]} e5 {[%emt 0:13:44]} 14. Nb5 {[%emt 0:08:29] The position is equal.} Qa5 {[%emt 0:02:54][%csl LRa2,LRb5]} 15. Qe2 {[%emt 0:10:16] [#]} Be6 $146 {[%emt 0:12:41]} ({Predecessor:} 15... Nc2 16. Qxc2 Qxb5 17. a4 Qa6 18. Rfd1 Be6 19. Bf1 Qa5 20. b4 Qxb4 21. Rab1 Qe7 {½-½ (28) Schild,C (2215)-Kribben,J (2205) Hessen 1999}) 16. Rfc1 {[%emt 0:17:14] Hoping for Bd2.} Rfc8 {[%emt 0:06:42]} 17. a3 {[%emt 0:08:41]} Rxc1+ {[%emt 0:04:41]} 18. Rxc1 {[%emt 0:00:50]} Nc6 {[%emt 0:00:21]} 19. b4 $36 {[%emt 0:05:11][%cal Bb2b4,Bb4a5,Ba5a6,Ba6a7][%mdl 2080] White has some pressure.} Qa6 {[%emt 0:09:08] [#]} (19... Qd8 $11 {keeps the balance.}) 20. Bf1 $1 $16 {[%emt 0:01:43] White is more active.} Nd4 {[%emt 0:00:51]} 21. Nxd4 {[%emt 0:01:17]} exd4 {[%emt 0:00:03]} 22. Qxa6 {[%emt 0:00:38]} bxa6 {[%emt 0:00:03]} 23. Bd2 {[%emt 0:01:16]} ({Better is} 23. Bf4) 23... a5 {[%emt 0:03:44]} 24. bxa5 {[%emt 0:02:10]} Bf8 {[%emt 0:01:47]} 25. Bb4 {[%emt 0:00:44]} Rb8 {[%emt 0:04:03]} 26. Rc7 {[%emt 0:03:04]} Bxb4 {[%emt 0:03:50]} 27. axb4 $14 {[%emt 0:00:05][%mdl 4096] Endgame KRB-KRB} a6 {[%emt 0:01:30][%mdl 8192] Against b5} (27... Rxb4 $16 {was worth a try.} 28. Rxa7 Rb1) 28. b5 $18 {[%emt 0:02:13]} axb5 {[%emt 0:01:57]} 29. a6 {[%emt 0:00:12]} Bc4 $2 {[%emt 0:03:51]} (29... b4 30. Rb7 Ra8 31. Rxb4 f5) 30. Bxc4 $2 {[%emt 0:01:07]} (30. Bh3 f5 31. a7) 30... bxc4 {[%emt 0:00:03] KR-KR} 31. a7 {[%emt 0:03:00]} (31. Rxc4 $6 d3 32. Rd4 Ra8 $16) 31... Ra8 {[%emt 0:00:21]} 32. Kf1 {[%emt 0:01:22] [#] Ke2 is the strong threat.} (32. Rxc4 Rxa7 33. Rxd4 Kg7 $16) 32... d3 {[%emt 0:01:35]} 33. Ke1 {[%emt 0:01:01] Threatens to win with Kd2.} c3 {[%emt 0:00:10]} 34. e5 {[%emt 0:03:01][%cal Be4e5,Be5e6,Be6f7][%mdl 32] And now Kd1 would win.} ({Don't do} 34. Rxc3 $6 Rxa7 35. Rxd3 f6 $16) 34... g5 $2 {[%emt 0:04:38][%mdl 8192] Black cannot hold the game after this.} (34... h5 $16 {is a better chance.} 35. Kd1 (35. Rxc3 Rxa7 36. Rxd3 g5 $14) 35... Kf8) 35. f4 {[%emt 0:03:54]} gxf4 {[%emt 0:00:06]} 36. gxf4 {[%emt 0:00:03]} Kg7 {[%emt 0:01:20]} 37. e6 {[%emt 0:00:06]} Kf6 {[%emt 0:01:13]} 38. exf7 {[%emt 0:00:09] aiming for Rb7.} h5 {[%emt 0:00:25]} 39. f5 {[%emt 0:01:24]} (39. Rxc3 $142 Kxf7 40. Ra3) 39... h4 {[%emt 0:00:12]} 40. h3 {[%emt 0:00:10]} (40. Rb7 $142 {Intending Rb8 and mate.} d2+ 41. Ke2) 40... Kxf5 {[%emt 0:01:21]} (40... Kg7 $18 41. Re7 (41. Rxc3 Rxa7 42. Rxd3 Kxf7 $11) 41... c2) 41. Rxc3 {[%emt 0:30:22] Weighted Error Value: White=0.69/Black=1.13} 1-0

[Event "Dutch Open 2022"]
[Site "Dieren"]
[Date "2022.07.30"]
[Round "5.11"]
[White "Zwirs, Jasper"]
[Black "Kumar, Prajit Sai"]
[Result "1/2-1/2"]
[ECO "B56"]
[WhiteElo "2105"]
[BlackElo "2040"]
[Annotator "TA"]
[PlyCount "40"]
[EventDate "2022.07.14"]
[EventType "swiss"]
[EventCountry "NED"]
[SourceTitle "playchess.com"]
[Source "ChessBase"]
[SourceQuality "1"]
[TimeControl "40/5400+30:1800+30"]

{[%evp 14,40,29,18,22,20,16,18,21,21,17,18,16,0,17,14,18,13,13,14,13,18,25,6,4,11,22,7,28]} 1. e4 {[%emt 0:00:04]} c5 {[%emt 0:00:04]} 2. Nf3 {[%emt 0:00:04]} Nc6 {[%emt 0:00:03]} 3. d4 {[%emt 0:00:06]} cxd4 {[%emt 0:00:05]} 4. Nxd4 {[%emt 0:00:03]} Nf6 {[%emt 0:00:07]} 5. Nc3 {[%emt 0:00:04]} d6 {[%emt 0:00:04]} 6. f3 {[%emt 0:04:32]} e5 {[%emt 0:00:08]} 7. Nb3 {[%emt 0:00:53]} Be6 {[%emt 0:00:14]} 8. Be3 {[%emt 0:01:33] 8.Nd5 is the hot move.} d5 {[%emt 0:00:20] B56: Classical Sicilian: Unusual Lines.} 9. exd5 {[%emt 0:01:03]} (9. Nxd5 {keeps more tension.} Nxd5 10. exd5 Qxd5 11. Qxd5 Bxd5 12. O-O-O) 9... Nxd5 {[%emt 0:00:07]} 10. Nxd5 {[%emt 0:00:28]} Qxd5 {[%emt 0:00:08]} 11. Qxd5 {[%emt 0:00:38]} Bxd5 {[%emt 0:00:06]} 12. O-O-O {[%emt 0:04:16]} O-O-O {[%emt 0:00:09]} 13. Bd3 {[%emt 0:12:05]} (13. Bb5 {seems wilder.} Kc7 14. c4 Be6 15. Rxd8 Kxd8 16. Rd1+) 13... Kb8 {[%emt 0:06:25] [#]} 14. c3 $146 {[%emt 0:27:53]} ({Predecessor:} 14. Kb1 Be7 15. Rhe1 Nb4 16. Bf5 g6 17. Bh3 f5 18. Bd2 Nc6 19. Bc3 Bf6 20. Nc5 Rhe8 21. Nd3 Bh8 22. Bd2 Bf6 23. Bc3 Bh8 24. Bd2 Bf6 25. Bc3 {½-½ (25) Ruiz Lupon,N (1844)-Comellas Blanchart,J (2045) Barcelona 2022}) 14... Be7 {[%emt 0:03:10]} 15. Kc2 {[%emt 0:03:42]} g6 {[%emt 0:05:21]} 16. Be4 {[%emt 0:04:41]} (16. Rhe1 {with more complications.} Be6 17. Bb5 Kc7 18. Nd2) 16... Bxe4+ {[%emt 0:02:51]} 17. fxe4 {[%emt 0:00:02]} f5 {[%emt 1:19:38]} 18. exf5 {[%emt 0:01:17]} gxf5 {[%emt 0:00:00] The position is equal.} 19. g3 {[%emt 0:00:22]} Rhf8 {[%emt 0:00:00]} 20. Rhf1 {[%emt 0:02:57]} h5 {[%emt 0:01:30] Not much happened in this game.  Weighted Error Value: White=0.06 (flawless) /Black=0.05 (flawless)} 1/2-1/2

[Event "Dutch Open 2022"]
[Site "Dieren"]
[Date "2022.07.30"]
[Round "5.12"]
[White "Shakhverdian, William"]
[Black "Vos, Tjark"]
[Result "1/2-1/2"]
[ECO "E90"]
[WhiteElo "2040"]
[BlackElo "2224"]
[Annotator "TA"]
[PlyCount "150"]
[EventDate "2022.07.14"]
[EventType "swiss"]
[EventCountry "NED"]
[SourceTitle "playchess.com"]
[Source "ChessBase"]
[SourceQuality "1"]
[TimeControl "40/5400+30:1800+30"]

{[%evp 13,150,33,42,44,47,49,43,35,43,43,53,40,53,60,58,52,62,49,56,1,58,2,2,0,0,0,0,-62,-64,-74,-57,-133,-139,-126,-112,-135,-122,-118,-127,-122,-114,-144,0,0,0,0,0,-132,-139,-591,-575,-536,-419,-412,-409,-414,-414,-475,-472,-710,-395,-393,-288,-721,-720,-712,-720,-712,-687,-668,-661,-29975,-29976,-1351,-563,-702,-660,-666,-282,-268,0,-34,-34,-34,-34,-34,-34,-34,-34,-34,-11,-11,-11,-34,-11,-34,-34,-34,-11,-34,-11,-34,-34,-34,-8,-34,-34,-34,-11,-11,-11,-11,-11,-11,-11,-11,-11,-34,-11,-34,-34,-34,-34,-34,0,-34,-8,-8,-8,-8,-8,-8,-8,-8,-8,-8,-8,-8,-8]} 1. d4 {[%emt 0:00:03]} Nf6 {[%emt 0:00:05]} 2. c4 {[%emt 0:00:08]} g6 {[%emt 0:00:05]} 3. Nc3 {[%emt 0:00:05]} Bg7 {[%emt 0:00:03]} 4. e4 {[%emt 0:00:07]} d6 {[%emt 0:00:05]} 5. h3 {[%emt 0:00:06]} O-O {[%emt 0:00:09]} 6. Nf3 {[%emt 0:00:07]} e5 {[%emt 0:00:19]} 7. d5 {[%emt 0:00:07]} Nh5 {[%emt 0:00:18]} 8. g3 {[%emt 0:00:33] E90: King's Indian: Classical: Early deviations and 6 h3.} f5 {[%emt 0:00:33] The main line 8...f5 scores better than 8...Na6.} 9. exf5 {[%emt 0:04:27]} gxf5 {[%emt 0:00:16]} 10. Nh4 {[%emt 0:00:51] White is slightly better.} Nf4 {[%emt 0:08:28][%cal Ob8a6]} 11. Be3 {[%emt 0:00:40]} Nd7 {[%emt 0:02:49]} 12. Qd2 {[%emt 0:02:17]} Nc5 {[%emt 0:09:04]} 13. O-O-O {[%emt 0:07:22]} Bd7 {[%emt 0:08:05] [#]} 14. Rg1 $146 {[%emt 0:06:11]} (14. gxf4 {is more complex.} Qxh4 15. Rg1 e4 16. Bd4) ({Predecessor:} 14. Nxf5 Bxf5 15. gxf4 exf4 16. Bd4 Bg6 17. h4 Bxd4 18. Qxd4 Qf6 19. h5 Bf5 20. Rg1+ {1-0 (47) Cruz,C (2564)-Gasic Merino,F (2166) Antofagasta 2019}) 14... Ng6 {[%emt 0:03:23]} 15. Nxg6 {[%emt 0:01:55]} hxg6 {[%emt 0:00:07]} 16. g4 {[%emt 0:01:13]} (16. h4 $14) 16... b6 {[%emt 0:07:17]} (16... Qh4 $11) 17. Be2 {[%emt 0:05:36]} (17. Bg5 $14 Qe8 18. Kb1) 17... Qh4 $1 $11 {[%emt 0:08:49]} 18. gxf5 {[%emt 0:04:46]} Bxf5 {[%emt 0:00:31]} 19. b4 {[%emt 0:04:45]} Nd7 {[%emt 0:14:44]} 20. f3 {[%emt 0:05:48]} (20. Bg4 $11) 20... a5 $15 {[%emt 0:01:18]} (20... Qxh3 $2 21. Rh1 $18) 21. b5 {[%emt 0:00:36][%cal Oc3e4]} Nc5 {[%emt 0:01:51] Against Ne4} (21... Qxh3 $2 22. Rh1 $18) 22. Kb2 {[%emt 0:06:43]} (22. Qe1 $15 Qxe1 23. Rdxe1) 22... e4 $17 {[%emt 0:02:19]} (22... Qxh3 $2 23. Rh1 $18) 23. Bxc5 {[%emt 0:09:25]} bxc5 {[%emt 0:00:27]} (23... dxc5 24. fxe4 Qxe4 25. Bd3 $15) 24. fxe4 {[%emt 0:00:17]} Qxe4 {[%emt 0:04:54]} (24... Bxe4 25. Rg4 Qe7 26. Bd3 $11) 25. Bd3 {[%emt 0:00:46]} Qh4 {[%emt 0:00:49]} 26. Qe1 {[%emt 0:11:44]} Qxh3 {[%emt 0:08:05]} 27. Rg3 {[%emt 0:01:58]} Qh4 {[%emt 0:08:14]} (27... Qh2+ 28. Rd2 Rae8 29. Bxf5 (29. Rxh2 Rxe1 30. Bxf5 gxf5 $17) 29... Rxe1 30. Rxh2 $17) (27... Qh6 $17 {Strongly threatening ...Be5.} 28. Bxf5 Rxf5) 28. Bxf5 $11 {[%emt 0:00:57]} Rxf5 {[%emt 0:00:06]} 29. Qe6+ {[%emt 0:00:40]} Rf7 {[%emt 0:11:47]} 30. Rxg6 {[%emt 0:06:48]} (30. Rf1 $11 {keeps the balance.} Qe7 31. Qxe7 Rxe7 32. Rxg6) 30... Kf8 $1 $40 {[%emt 0:00:00][%cal Bg8f8,Bf8g7,Bg7f6,Bf6g6,Bg6f5,Bf5e5][%mdl 160] Black wants a kill.} (30... Qxc4 $2 31. Rxg7+ $1 {[%mdl 512]} Kxg7 32. Rg1+ Kf8 33. Qh6+ Ke7 34. Qe3+ Kf8 35. Qh6+ Ke7 36. Qe3+ Kf8 37. Qh6+ $18) 31. Qg4 $2 {[%emt 0:05:21][%mdl 8192]} ({Don't blunder} 31. Qe2 $2 Re8 32. Qd3 Qf2+ 33. Rd2 Re3 34. Rxg7 Kxg7 $19) (31. Rxg7 $17 {was the crucial defense.} Kxg7 32. Rg1+ Kf8 33. Qg6) 31... Qxg4 {[%emt 0:00:00]} ({Stronger than} 31... Qf2+ 32. Kb1 $17) 32. Rxg4 {[%emt 0:00:02]} Rf3 {[%emt 0:00:00] Against Rd3} 33. Rxg7 {[%emt 0:12:17]} ({Reject} 33. Rc1 Re8 34. Rg2 Ree3 35. Rxg7 Kxg7 $19) 33... Kxg7 $19 {[%emt 0:00:00][%mdl 4096] Endgame KRR-KRN} 34. Rg1+ {[%emt 0:00:32]} Kf6 {[%emt 0:00:00]} 35. Re1 {[%emt 0:01:05]} Rh8 {[%emt 0:00:00]} 36. b6 {[%emt 0:00:06]} (36. Re2 $142 Kf5 37. a4) 36... cxb6 {[%emt 0:00:00]} 37. Ne4+ {[%emt 0:01:19]} Kg6 {[%emt 0:00:00] Threatens to win with ...Rh2+.} 38. Rg1+ $2 {[%emt 0:00:27]} (38. Re2) 38... Kf5 {[%emt 0:00:00]} 39. Nxd6+ {[%emt 0:00:07]} Ke5 {[%emt 0:01:10]} 40. Nb5 {[%emt 0:00:04]} Rh2+ {[%emt 0:00:55]} 41. Kb1 {[%emt 0:30:24]} Rff2 {[%emt 0:30:48] Hoping for ...Rb2+.} 42. a3 {[%emt 0:00:00]} Rb2+ {[%emt 0:00:00]} 43. Ka1 {[%emt 0:00:00]} Rbc2 {[%emt 0:00:00]} (43... Ra2+ $142 44. Kb1 Rhb2+ 45. Kc1 Rxb5 $1 {[%mdl 512]} 46. Rg5+ Kf4) 44. d6 {[%emt 0:00:00]} Rxc4 {[%emt 0:00:00]} 45. Rd1 {[%emt 0:00:00]} Rh8 {[%emt 0:00:00]} (45... Rcc2 $142 46. a4 Rcd2) 46. d7 {[%emt 0:00:00] [#]} Rd4 $1 {[%emt 0:00:00]} 47. Nxd4 {[%emt 0:00:00]} (47. Re1+ Re4) 47... cxd4 $11 {[%emt 0:00:00] KR-KR} 48. Re1+ {[%emt 0:00:00]} Kd6 {[%emt 0:00:00]} 49. Re4 $1 {[%emt 0:00:00]} Kxd7 {[%emt 0:00:00]} 50. Rxd4+ {[%emt 0:00:00]} Kc6 {[%emt 0:00:00]} 51. Kb2 {[%emt 0:00:00]} Rh3 {[%emt 0:00:00]} 52. Rg4 {[%emt 0:00:00]} Rd3 {[%emt 0:00:00]} 53. Rg6+ {[%emt 0:00:00]} Kc5 {[%emt 0:00:00]} (53... Rd6 $5 {[%cal Rd6g6]} 54. Rg8 b5 $15) 54. Rg5+ {[%emt 0:00:00]} Rd5 {[%emt 0:09:37]} 55. Rg2 {[%emt 0:00:00]} Kc4 {[%emt 0:00:00]} 56. Rh2 {[%emt 0:00:00]} Rd4 {[%emt 0:00:00]} 57. Rc2+ {[%emt 0:00:00]} Kb5 {[%emt 0:00:00]} 58. Rh2 {[%emt 0:00:00]} Ka4 {[%emt 0:00:00]} 59. Rg2 {[%emt 0:00:00]} Rh4 {[%emt 0:00:00]} 60. Rf2 {[%emt 0:00:00]} Rh3 {[%emt 0:00:00] ( -> ...Rb3+)} 61. Rf4+ {[%emt 0:00:00]} Kb5 {[%emt 0:00:00]} 62. Rf5+ {[%emt 0:00:00]} Kc6 {[%emt 0:00:00]} 63. Rf6+ {[%emt 0:00:00]} Kb7 {[%emt 0:00:00]} 64. Rf7+ {[%emt 0:00:00]} Ka6 {[%emt 0:00:00]} 65. Rf2 {[%emt 0:00:00]} Rh5 {[%emt 0:00:00]} 66. Rg2 {[%emt 0:00:00]} Kb5 {[%emt 0:00:00]} 67. Rf2 {[%emt 0:00:00]} Rh4 {[%emt 0:00:00]} 68. Rg2 {[%emt 0:00:00]} Ka4 {[%emt 0:00:00]} 69. Rf2 {[%emt 0:00:00]} b5 {[%emt 0:00:00]} 70. Rg2 $1 {[%emt 0:00:00] The position is equal.} Rh3 {[%emt 0:00:00]} 71. Rg4+ {[%emt 0:00:00]} b4 {[%emt 0:00:00]} 72. axb4 {[%emt 0:00:00]} axb4 {[%emt 0:00:00]} 73. Rg2 {[%emt 0:00:00] Inhibits Rh2.} Re3 {[%emt 0:00:00]} 74. Rh2 {[%emt 0:00:45]} Rb3+ {[%emt 0:00:00]} 75. Ka2 {[%emt 0:00:11]} Ra3+ {[%emt 0:00:00] White happily takes the draw.  Weighted Error Value: White=0.51/Black=0.43} 1/2-1/2

[Event "Dutch Open 2022"]
[Site "Dieren"]
[Date "2022.07.30"]
[Round "5.13"]
[White "Achuthan, Dylan"]
[Black "Vogel, Jaap"]
[Result "1/2-1/2"]
[ECO "B20"]
[WhiteElo "1989"]
[BlackElo "2147"]
[Annotator "TA"]
[PlyCount "21"]
[EventDate "2022.07.14"]
[EventType "swiss"]
[EventCountry "NED"]
[SourceTitle "playchess.com"]
[Source "ChessBase"]
[SourceQuality "1"]
[TimeControl "40/5400+30:1800+30"]

{[%evp 9,21,0,8,1,14,22,22,-4,-16,-24,-22,-20,-19,-28]} 1. e4 {[%emt 0:00:25]} e6 {[%emt 0:00:00]} 2. b3 {[%emt 0:00:05]} c5 {[%emt 0:01:03]} 3. Bb2 {[%emt 0:00:20]} Nc6 {[%emt 0:00:31]} 4. g3 {[%emt 0:16:47]} d6 {[%emt 0:07:06][%cal Bd7d6,Bd6d5][%mdl 32]} 5. Bg2 {[%emt 0:03:33]} Nf6 {[%emt 0:01:14]} 6. Ne2 {[%emt 0:01:00] B20: Sicilian: Unusual White 2nd moves.} Be7 {[%emt 0:08:51]} 7. O-O {[%emt 0:00:15]} O-O {[%emt 0:01:19]} 8. h3 {[%emt 0:09:32]} d5 {[%emt 0:08:39] [#]} 9. d3 $146 {[%emt 0:09:05]} ({Predecessor:} 9. e5 Nd7 10. f4 f6 11. exf6 Nxf6 12. d3 d4 13. Na3 Nd5 14. Bc1 Bf6 15. g4 {½-½ (97) Lagerborg,K (2034)-Schneider,S (2387) Sweden 2015}) 9... Qc7 {[%emt 0:16:22]} 10. Nd2 {[%emt 0:19:14]} Rd8 {[%emt 0:06:22]} 11. Qe1 {[%emt 0:09:30] An uneventful encounter.  Weighted Error Value: White=0.04 (flawless) /Black=0.03 (flawless)} 1/2-1/2